[Event "44th Chess Olympiad Open 2022"]
[Site "Chennai"]
[Date "2022.07.31"]
[Round "3.12"]
[White "Adly, Ahmed"]
[Black "Melkumyan, Hrant"]
[Result "1/2-1/2"]
[WhiteElo "2582"]
[BlackElo "2634"]
[Annotator "RC"]
[PlyCount "70"]
[EventDate "2022.??.??"]
[TimeControl "60"]

1. d4 {[%emt 0:00:48]} d5 {[%emt 0:00:11]} 2. Nf3 {[%emt 0:00:09]} Nf6 {
[%emt 0:00:11]} 3. c4 {[%emt 0:00:04]} e6 {[%emt 0:00:09]} 4. Nc3 {[%emt 0:00:
00]} c5 {[%emt 0:00:24]} 5. cxd5 {[%emt 0:08:41]} cxd4 {[%emt 0:02:21]} 6. Qxd4
{[%emt 0:01:49]} exd5 {[%emt 0:00:10]} 7. e4 {[%emt 0:00:02]} dxe4 {[%emt 0:00:
00]} 8. Qxd8+ {[%emt 0:00:08]} Kxd8 {[%emt 0:00:07]} 9. Ng5 {[%emt 0:00:03]}
Be6 {[%emt 0:00:11]} 10. Nxe6+ {[%emt 0:01:18]} fxe6 {[%emt 0:00:12]} 11. Bg5 {
[%emt 0:00:02]} Ke8 {[%emt 0:01:19]} 12. Bb5+ {[%emt 0:01:16]} Kf7 {[%emt 0:00:
00]} 13. Ke2 {[%emt 0:06:19]} Be7 {[%emt 0:02:17]} 14. Rhd1 {[%emt 0:08:34]}
Rc8 {[%emt 0:03:51]} 15. Rac1 {[%emt 0:00:48]} Nc6 {[%emt 0:01:00]} 16. h3 {
[%emt 0:19:28]} a6 {[%emt 0:04:38]} 17. Ba4 {[%emt 0:00:35]} b5 {[%emt 0:02:21]
} 18. Bc2 {[%emt 0:01:55]} h6 {[%emt 0:17:17]} 19. Be3 {[%emt 0:04:20]} Nb4 {
[%emt 0:03:17]} 20. Bb1 {[%emt 0:00:18]} Nbd5 {[%emt 0:02:11]} 21. Nxe4 {
[%emt 0:00:28]} Nxe3 {[%emt 0:00:32]} 22. Kxe3 {[%emt 0:00:56]} Nxe4 {[%emt 0:
00:00]} 23. Bxe4 {[%emt 0:00:58]} Rab8 {[%emt 0:00:20]} 24. Rxc8 {[%emt 0:00:
00]} Rxc8 {[%emt 0:00:25]} 25. Rd7 {[%emt 0:00:03]} Kf6 {[%emt 0:00:47]} 26.
Ke2 {[%emt 0:02:21]} Rc4 {[%emt 0:02:41]} 27. Bd3 {[%emt 0:02:50]} Ra4 {
[%emt 0:04:42]} 28. Bb1 {[%emt 0:00:58]} Rc4 {[%emt 0:10:14]} 29. Ra7 {[%emt 0:
00:00]} Rc6 {[%emt 0:02:18]} 30. Be4 {[%emt 0:00:16]} Rd6 {[%emt 0:00:13]} 31.
Ra8 {[%emt 0:06:50]} Bd8 {[%emt 0:00:27]} 32. Bb7 {[%emt 0:02:02]} a5 {[%emt 0:
00:00]} 33. Ba6 {[%emt 0:00:31]} b4 {[%emt 0:00:46]} 34. Bc4 {[%emt 0:00:22]}
Bb6 {[%emt 0:01:51]} 35. Rf8+ {[%emt 0:02:11]} Ke5 {[%emt 0:00:04]} 1/2-1/2

[Event "44th Chess Olympiad Open 2022"]
[Site "Chennai"]
[Date "2022.07.31"]
[Round "3.12"]
[White "Hesham, Abdelrahman"]
[Black "Hovhannisyan, Robert"]
[Result "0-1"]
[WhiteElo "2386"]
[BlackElo "2591"]
[Annotator "RC"]
[PlyCount "245"]
[EventDate "2022.??.??"]
[TimeControl "60"]

1. d4 {[%emt 0:00:50]} d5 {[%emt 0:00:17]} 2. c4 {[%emt 0:00:05]} c6 {[%emt 0:
00:00]} 3. Nf3 {[%emt 0:00:05]} Nf6 {[%emt 0:00:07]} 4. e3 {[%emt 0:00:05]} Bf5
{[%emt 0:00:23]} 5. Nc3 {[%emt 0:01:42]} e6 {[%emt 0:00:22]} 6. Nh4 {[%emt 0:
00:00]} Bg6 {[%emt 0:00:09]} 7. Qb3 {[%emt 0:01:26]} Qc7 {[%emt 0:00:44]} 8.
Nxg6 {[%emt 0:01:14]} hxg6 {[%emt 0:00:07]} 9. Bd2 {[%emt 0:06:09]} Nbd7 {
[%emt 0:00:30]} 10. cxd5 {[%emt 0:01:28]} exd5 {[%emt 0:00:22]} 11. h3 {
[%emt 0:06:18]} Be7 {[%emt 0:05:30]} 12. Bd3 {[%emt 0:00:26]} O-O {[%emt 0:00:
00]} 13. O-O {[%emt 0:00:51]} Nb6 {[%emt 0:04:11]} 14. Rfc1 {[%emt 0:05:54]}
Qd7 {[%emt 0:05:15]} 15. Be1 {[%emt 0:03:11]} Rfe8 {[%emt 0:04:55]} 16. f3 {
[%emt 0:12:15]} Bd6 {[%emt 0:05:58]} 17. Bf2 {[%emt 0:02:13]} Bc7 {[%emt 0:00:
00]} 18. e4 {[%emt 0:11:29]} dxe4 {[%emt 0:03:42]} 19. fxe4 {[%emt 0:00:10]}
Bg3 {[%emt 0:03:31]} 20. Bxg3 {[%emt 0:06:34]} Qxd4+ {[%emt 0:02:37]} 21. Bf2 {
[%emt 0:02:06]} Qxd3 {[%emt 0:00:06]} 22. Bxb6 {[%emt 0:00:09]} axb6 {[%emt 0:
00:00]} 23. Qxb6 {[%emt 0:00:07]} Qg3 {[%emt 0:22:20]} 24. Rf1 {[%emt 0:03:40]}
Re7 {[%emt 0:04:24]} 25. Rad1 {[%emt 0:00:39]} Qe5 {[%emt 0:04:45]} 26. Rd8+ {
[%emt 0:00:31]} Rxd8 {[%emt 0:00:15]} 27. Qxd8+ {[%emt 0:00:04]} Kh7 {[%emt 0:
00:00]} 28. Qd3 {[%emt 0:00:31]} Kg8 {[%emt 0:04:20]} 29. Qd8+ {[%emt 0:00:22]}
Kh7 {[%emt 0:00:14]} 30. Qd3 {[%emt 0:00:05]} Rd7 {[%emt 0:01:41]} 31. Qe3 {
[%emt 0:00:09]} Kg8 {[%emt 0:01:45]} 32. Rf2 {[%emt 0:03:42]} Re7 {[%emt 0:00:
00]} 33. Re2 {[%emt 0:09:56]} Nd5 {[%emt 0:01:22]} 34. Qf3 {[%emt 0:01:06]}
Qd4+ {[%emt 0:01:44]} 35. Kh1 {[%emt 0:01:47]} Nxc3 {[%emt 0:00:25]} 36. bxc3 {
[%emt 0:00:01]} Qd1+ {[%emt 0:02:02]} 37. Kh2 {[%emt 0:00:05]} Qd6+ {[%emt 0:
00:00]} 38. Qg3 {[%emt 0:03:14]} Qe5 {[%emt 0:01:35]} 39. Rd2 {[%emt 0:05:28]}
Qxe4 {[%emt 0:03:29]} 40. Rd4 {[%emt 0:00:29]} Qe6 {[%emt 0:07:50]} 41. Rd8+ {
[%emt 0:43:04]} Re8 {[%emt 0:30:07]} 42. Qb8 {[%emt 0:00:11]} Kf8 {[%emt 0:00:
00]} 43. c4 {[%emt 0:00:00]} Rxd8 {[%emt 0:00:00]} 44. Qxd8+ {[%emt 0:00:00]}
Qe8 {[%emt 0:00:00]} 45. Qc7 {[%emt 0:00:00]} b5 {[%emt 0:00:00]} 46. cxb5 {
[%emt 0:00:00]} cxb5 {[%emt 0:00:00]} 47. Kg3 {[%emt 0:00:00]} Kg8 {[%emt 0:00:
00]} 48. Kf2 {[%emt 0:00:00]} f6 {[%emt 0:00:00]} 49. a4 {[%emt 0:00:00]} bxa4
{[%emt 0:00:00]} 50. Qc4+ {[%emt 0:00:00]} Kf8 {[%emt 0:00:00]} 51. Qb4+ {
[%emt 0:00:00]} Kf7 {[%emt 0:00:00]} 52. Qc4+ {[%emt 0:00:00]} Ke7 {[%emt 0:00:
00]} 53. Qe4+ {[%emt 0:00:00]} Kf7 {[%emt 0:00:00]} 54. Qc4+ {[%emt 0:00:00]}
Qe6 {[%emt 0:00:00]} 55. Qxa4 {[%emt 0:00:00]} g5 {[%emt 0:00:00]} 56. Qd4 {
[%emt 0:01:54]} Kg6 {[%emt 0:00:00]} 57. Qd8 {[%emt 0:00:25]} Qe4 {[%emt 0:00:
00]} 58. Kg1 {[%emt 0:00:28]} Qe3+ {[%emt 0:00:00]} 59. Kh1 {[%emt 0:00:23]}
Qe1+ {[%emt 0:00:00]} 60. Kh2 {[%emt 0:00:04]} Qe6 {[%emt 0:00:00]} 61. Kh1 {
[%emt 0:00:24]} Qf7 {[%emt 0:00:00]} 62. Qd6 {[%emt 0:01:11]} Qe8 {[%emt 0:00:
00]} 63. Qd3+ {[%emt 0:00:11]} Kh6 {[%emt 0:00:00]} 64. Kh2 {[%emt 0:00:24]}
Qe7 {[%emt 0:00:00]} 65. Kh1 {[%emt 0:00:07]} Qc7 {[%emt 0:00:00]} 66. Qd5 {
[%emt 0:00:36]} Qc1+ {[%emt 0:00:00]} 67. Kh2 {[%emt 0:00:01]} Qf4+ {[%emt 0:
00:00]} 68. Kh1 {[%emt 0:00:04]} Qh4 {[%emt 0:00:00]} 69. Qd8 {[%emt 0:01:47]}
Qe4 {[%emt 0:00:00]} 70. Qd7 {[%emt 0:00:20]} Kh7 {[%emt 0:00:00]} 71. Kh2 {
[%emt 0:00:07]} Qh4 {[%emt 0:00:00]} 72. Kg1 {[%emt 0:00:21]} Kh6 {[%emt 0:00:
00]} 73. Kh2 {[%emt 0:01:25]} Qe1 {[%emt 0:00:00]} 74. Qc8 {[%emt 0:00:37]} Qe7
{[%emt 0:01:24]} 75. Kh1 {[%emt 0:00:15]} Kg6 {[%emt 0:00:12]} 76. Kh2 {
[%emt 0:00:09]} Kf7 {[%emt 0:00:12]} 77. Qc4+ {[%emt 0:00:16]} Qe6 {[%emt 0:00:
00]} 78. Qc7+ {[%emt 0:00:04]} Kg6 {[%emt 0:00:11]} 79. Qd8 {[%emt 0:00:13]} g4
{[%emt 0:00:58]} 80. hxg4 {[%emt 0:00:53]} Qxg4 {[%emt 0:00:07]} 81. Qe8+ {
[%emt 0:00:35]} Kg5 {[%emt 0:00:32]} 82. Qd8 {[%emt 0:01:42]} Qf4+ {[%emt 0:00:
00]} 83. Kg1 {[%emt 0:00:17]} Qe3+ {[%emt 0:00:23]} 84. Kh2 {[%emt 0:00:18]}
Qf4+ {[%emt 0:00:42]} 85. Kg1 {[%emt 0:00:04]} Kh4 {[%emt 0:00:22]} 86. Qd7 {
[%emt 0:01:07]} Qg4 {[%emt 0:01:00]} 87. Qd3 {[%emt 0:00:42]} Kg5 {[%emt 0:00:
00]} 88. Qd5+ {[%emt 0:00:59]} Qf5 {[%emt 0:00:19]} 89. Qf7 {[%emt 0:00:21]}
Qc5+ {[%emt 0:00:25]} 90. Kh1 {[%emt 0:00:30]} Qc1+ {[%emt 0:00:13]} 91. Kh2 {
[%emt 0:00:01]} Qf4+ {[%emt 0:00:10]} 92. Kh1 {[%emt 0:00:38]} Qh4+ {[%emt 0:
00:00]} 93. Kg1 {[%emt 0:00:01]} Qd4+ {[%emt 0:00:09]} 94. Kf1 {[%emt 0:00:04]}
Qd1+ {[%emt 0:00:33]} 95. Kf2 {[%emt 0:01:33]} Qd4+ {[%emt 0:00:33]} 96. Kf1 {
[%emt 0:00:05]} g6 {[%emt 0:00:40]} 97. Qb7 {[%emt 0:00:47]} Qe3 {[%emt 0:00:
00]} 98. Qc6 {[%emt 0:03:02]} Kf5 {[%emt 0:02:00]} 99. Qc2+ {[%emt 0:00:40]}
Qe4 {[%emt 0:00:40]} 100. Qc8+ {[%emt 0:00:51]} Kf4 {[%emt 0:00:46]} 101. Kg1 {
[%emt 0:00:38]} Qd4+ {[%emt 0:00:25]} 102. Kh2 {[%emt 0:00:29]} Qe5 {[%emt 0:
00:00]} 103. Kg1 {[%emt 0:00:50]} g5 {[%emt 0:02:34]} 104. Qc4+ {[%emt 0:01:20]
} Ke3 {[%emt 0:00:33]} 105. Qb3+ {[%emt 0:00:28]} Kd2 {[%emt 0:00:07]} 106.
Qa2+ {[%emt 0:00:43]} Kc1 {[%emt 0:01:12]} 107. Qa3+ {[%emt 0:00:29]} Kc2 {
[%emt 0:00:31]} 108. Qa2+ {[%emt 0:00:11]} Qb2 {[%emt 0:00:41]} 109. Qc4+ {
[%emt 0:00:04]} Qc3 {[%emt 0:00:09]} 110. Qe2+ {[%emt 0:00:26]} Kc1 {[%emt 0:
00:00]} 111. Qf1+ {[%emt 0:00:25]} Kd2 {[%emt 0:00:06]} 112. Qf2+ {[%emt 0:00:
00]} Kd1 {[%emt 0:00:08]} 113. Kh2 {[%emt 0:03:04]} Qe5+ {[%emt 0:02:44]} 114.
Kh3 {[%emt 0:00:01]} Qe4 {[%emt 0:01:51]} 115. Qf1+ {[%emt 0:00:47]} Kd2 {
[%emt 0:00:07]} 116. Qf2+ {[%emt 0:00:38]} Qe2 {[%emt 0:00:03]} 117. Qf5 {
[%emt 0:00:18]} Qh5+ {[%emt 0:05:37]} 118. Kg3 {[%emt 0:00:01]} Qh4+ {[%emt 0:
00:00]} 119. Kf3 {[%emt 0:00:03]} Qd4 {[%emt 0:00:08]} 120. Qa5+ {[%emt 0:00:
00]} Kd1 {[%emt 0:00:09]} 121. Qf5 {[%emt 0:01:06]} Ke1 {[%emt 0:00:32]} 122.
Qa5+ {[%emt 0:00:49]} Qd2 {[%emt 0:00:40]} 123. Qf5 {[%emt 0:01:21]} 0-1

[Event "44th Chess Olympiad Open 2022"]
[Site "Chennai"]
[Date "2022.07.31"]
[Round "3.13"]
[White "Tabatabaei, M. Amin"]
[Black "Djukic, Nikola"]
[Result "1/2-1/2"]
[WhiteElo "2664"]
[BlackElo "2526"]
[Annotator "TA"]
[PlyCount "115"]
[EventDate "2022.??.??"]
[TimeControl "60"]

{[%evp 16,115,15,22,21,6,6,6,7,20,8,8,12,17,17,10,18,0,0,0,0,0,15,18,4,4,10,0,
35,30,29,15,19,0,27,6,22,0,32,23,64,39,56,56,49,41,70,39,73,29,27,28,77,77,77,
77,81,67,113,113,112,77,77,77,211,285,337,314,573,133,142,140,156,39,24,63,67,
0,0,0,0,0,0,-8,0,-8,0,-8,0,-10,-9,-23,-23,-23,-23,-23,-24,-24,-20,-24,0,-141]} 
1. c4 {[%emt 0:00:05]} g6 {[%emt 0:00:37]} 2. Nc3 {[%emt 0:00:40]} c5 {[%emt 0:
00:00]} 3. g3 {[%emt 0:01:24]} Bg7 {[%emt 0:00:29]} 4. Bg2 {[%emt 0:00:07]} Nc6
{[%emt 0:00:16]} 5. Nf3 {[%emt 0:01:12]} e6 {[%emt 0:01:05]} 6. d4 {[%emt 0:00:
00]} cxd4 {[%emt 0:00:43]} 7. Nb5 {[%emt 0:01:04]} d5 {[%emt 0:00:21]} 8. cxd5
{[%emt 0:00:36]} exd5 {[%emt 0:00:09]} 9. O-O {[%emt 0:00:29]} Nf6 {[%emt 0:00:
00] A04: Unusual lines after 1 Nf3 and King's Indian Attack.} 10. Nbxd4 {
[%emt 0:05:47]} O-O {[%emt 0:00:32]} 11. Nxc6 {[%emt 0:01:50]} bxc6 {[%emt 0:
00:00]} 12. Be3 {[%emt 0:00:03]} Re8 {[%emt 0:17:07][%cal Ye8e3]} 13. Bd4 {
[%emt 0:01:02] [#]} Ba6 $146 {[%emt 0:01:21]} ({Predecessor:} 13... Qd6 14. Rc1
a5 15. Re1 Bd7 16. Nd2 a4 17. e4 Qb4 18. Bc3 Qb5 19. exd5 cxd5 20. Rxe8+ Rxe8 {
½-½ (41) Issler,C (2515)-Joffe,M (2660) Sweden 1994}) 14. Re1 {[%emt 0:00:36]
} Ne4 {[%emt 0:00:38]} 15. Rc1 {[%emt 0:07:57]} Rc8 {[%emt 0:02:39]} 16. Bh3 {
[%emt 0:34:13]} Rc7 {[%emt 0:07:04]} 17. Bxg7 {[%emt 0:00:27]} Kxg7 {[%emt 0:
00:00]} 18. Qa4 {[%emt 0:00:21]} Bc8 {[%emt 0:20:10]} 19. Bxc8 {[%emt 0:01:27]}
Qxc8 {[%emt 0:00:17]} 20. Qd4+ {[%emt 0:00:34]} f6 {[%emt 0:06:21]} 21. b4 {
[%emt 0:00:38]} Qa6 {[%emt 0:07:43]} (21... a5 $5) 22. Rc2 {[%emt 0:04:25]} Nd6
{[%emt 0:07:42]} 23. Qc5 {[%emt 0:14:23]} Ne4 {[%emt 0:01:26]} 24. Qd4 {
[%emt 0:02:46]} Nd6 {[%emt 0:00:08]} 25. Qd3 {[%emt 0:01:00]} Qb6 {[%emt 0:00:
00]} 26. Rec1 {[%emt 0:01:02]} ({Reject} 26. Qd4 Nc4 $11) 26... Re4 {[%emt 0:
00:00]} (26... Nc4 $5 {[%cal Rb6b4]}) 27. e3 {[%emt 0:03:25]} Nc4 {[%emt 0:00:
00]} 28. Nd4 {[%emt 0:01:40] Black must now prevent Rxc4.} (28. b5 $5) 28...
Re8 {[%emt 0:01:39]} 29. Rxc4 {[%emt 0:00:54]} dxc4 {[%emt 0:00:07]} 30. Qxc4 {
[%emt 0:00:35]} Rce7 {[%emt 0:02:03]} 31. a3 {[%emt 0:02:27][%cal Ya2a3,Ya3a4,
Ya4a5] White is more active.} h5 {[%emt 0:02:25]} 32. Qxc6 {[%emt 0:00:00]} (
32. a4 {feels hotter.} a6 33. h4 Rb8 34. Rd1) 32... Qxc6 {[%emt 0:00:00]} 33.
Rxc6 $16 {[%emt 0:00:05] Endgame KRR-KRN} Rd7 {[%emt 0:00:00]} (33... Rb8 $1
$11) 34. b5 {[%emt 0:00:27]} Kf7 {[%emt 0:00:22]} 35. a4 {[%emt 0:00:51]} Rb8 {
[%emt 0:00:43]} 36. Kf1 {[%emt 0:01:48]} Rb6 {[%emt 0:00:00]} (36... Rbb7 $14 {
feels stronger.}) 37. Rc8 $1 {[%emt 0:06:12]} Rbb7 {[%emt 0:00:39]} 38. Ke2 {
[%emt 0:02:22]} a6 {[%emt 0:00:32]} 39. bxa6 {[%emt 0:00:00]} Rb4 {[%emt 0:00:
09]} (39... Rb2+ $16 40. Kf3 Ra2) 40. a5 $18 {[%emt 0:00:00]} Ra7 {[%emt 0:00:
35]} 41. Rc6 {[%emt 0:30:57]} Ra4 $2 {[%emt 0:06:35] [#]} (41... Kg8 {was
worth a try.} 42. Rd6 Kg7) 42. Nb3 $2 {[%emt 0:00:00]} (42. Rb6 $1 $18 {
[%cal Rb6b7] Strongly threatening Rb7+.} Ke8 43. Nb5 (43. Rb8+ Kd7 $11)) 42...
g5 {[%emt 0:01:18]} 43. h3 {[%emt 0:00:00]} Ra2+ {[%emt 0:00:00] [#]} 44. Kf3 {
[%emt 0:00:00]} ({White should play} 44. Kd3 $1 $16) 44... g4+ $1 $14 {[%emt 0:
00:51]} 45. hxg4 {[%emt 0:00:00]} hxg4+ {[%emt 0:00:06]} 46. Kxg4 {[%emt 0:00:
00]} (46. Ke4 $1 $14) 46... Rxf2 $11 {[%emt 0:00:08]} 47. Nd4 {[%emt 0:00:00]}
Ra8 {[%emt 0:00:31]} 48. Nf3 {[%emt 0:03:43]} Ra2 {[%emt 0:02:06]} 49. Rc7+ {
[%emt 0:00:02]} Ke8 {[%emt 0:04:25]} 50. Rc6 {[%emt 0:00:56]} Kf7 {[%emt 0:00:
41]} 51. Rc7+ {[%emt 0:00:25]} Ke8 {[%emt 0:00:00]} 52. Nd4 {[%emt 0:00:41]}
Rxa5 {[%emt 0:02:33]} 53. Nc6 {[%emt 0:00:01]} Rg5+ {[%emt 0:00:32]} 54. Kf4 {
[%emt 0:00:06]} Rxa6 {[%emt 0:00:06] ...Rc5 is the strong threat.} 55. Nd4 {
[%emt 0:00:20]} Ra1 {[%emt 0:02:43]} 56. Nf3 {[%emt 0:00:06]} Ra4+ {[%emt 0:01:
11]} 57. Nd4 {[%emt 0:00:51]} Ra1 {[%emt 0:00:00]} 58. Ke4 {[%emt 0:00:30]
Blacks defense is rewarded with a draw. Weighted Error Value: White=0.27 
(precise) /Black=0.17 (very precise)} (58. Nf3 $11 {keeps the balance.})
1/2-1/2

[Event "44th Chess Olympiad Open 2022"]
[Site "Chennai"]
[Date "2022.07.31"]
[Round "3.13"]
[White "Kadric, Denis"]
[Black "Maghsoodloo, Parham"]
[Result "0-1"]
[WhiteElo "2554"]
[BlackElo "2701"]
[Annotator "TA"]
[PlyCount "58"]
[EventDate "2022.??.??"]
[TimeControl "60"]

{[%evp 9,58,0,0,0,16,0,24,22,34,10,52,22,8,21,5,16,18,14,39,-52,-54,-54,-64,
-72,-62,-89,-82,-225,-228,-227,-237,-241,-210,-190,-191,-209,-207,-253,-254,
-206,-206,-232,-218,-419,-397,-580,-423,-450,-451,-29997,-29998]} 1. e4 {
[%emt 0:00:03]} c5 {[%emt 0:00:32]} 2. Nc3 {[%emt 0:00:05]} Nc6 {[%emt 0:00:06]
} 3. Nge2 {[%emt 0:00:03]} Nd4 {[%emt 0:00:06]} 4. d3 {[%emt 0:03:15]} g6 {
[%emt 0:03:07]} 5. Nxd4 {[%emt 0:00:13]} cxd4 {[%emt 0:00:07]} 6. Ne2 {[%emt 0:
00:00] B23: Closed Sicilian: Lines without g3.} Bg7 {[%emt 0:00:55]} 7. c3 {
[%emt 0:00:15] [#]} e5 $146 {[%emt 0:06:09]} ({Predecessor:} 7... dxc3 8. Nxc3
d6 9. d4 Nf6 10. Be2 O-O 11. O-O e5 12. Be3 Bd7 13. Rc1 exd4 14. Bxd4 {½-½ 
(57) Ponomariov,R (2673)-Moiseenko,A (2561) Kharkov 2001}) 8. cxd4 {[%emt 0:00:
00] White has an edge.} exd4 {[%emt 0:00:09]} 9. Qa4 {[%emt 0:01:15]} Nf6 {
[%emt 0:10:08]} 10. Bg5 {[%emt 0:12:42]} h6 {[%emt 0:02:09]} 11. Bh4 {[%emt 0:
00:00]} g5 $1 {[%emt 0:05:15]} 12. Bg3 {[%emt 0:00:02] And now Bd6 would win.}
O-O {[%emt 0:00:06]} 13. Bd6 {[%emt 0:06:19]} (13. Nxd4 d5 14. Ne2 Qb6 $15)
13... Re8 {[%emt 0:03:06]} 14. Ng3 {[%emt 0:00:50]} (14. Qa3 $14) 14... Re6 $1
$15 {[%emt 0:09:32]} ({Don't play} 14... Qb6 15. Qa3 $11) 15. Nf5 {[%emt 0:00:
00]} Ne8 $1 {[%emt 0:06:26][%cal Yf6e8,Ye8g7,Yg7f5,Yf5e3]} 16. Nxg7 {[%emt 0:
14:42]} Nxg7 {[%emt 0:00:38]} 17. Ba3 {[%emt 0:06:31]} ({Avoid the trap} 17.
Qxd4 $2 Nf5 18. Qc3 Nxd6 $19) 17... d5 {[%emt 0:00:08]} 18. f3 {[%emt 0:00:00]
[#] Loses the game.} ({Don't go for} 18. Qxd4 $2 Nf5 19. Qc3 dxe4 $19) (18. Be2
$17) 18... Nf5 $1 $19 {[%emt 0:01:39]} 19. Kf2 {[%emt 0:06:39]} Bd7 {[%emt 0:
05:49]} 20. Qb4 {[%emt 0:05:41]} a5 {[%emt 0:03:45]} 21. Qd2 {[%emt 0:00:00]}
Ne3 {[%emt 0:00:19] aiming for ...Rc6.} 22. Be2 {[%emt 0:00:03]} Qf6 {[%emt 0:
19:31]} 23. Rhc1 {[%emt 0:26:00]} dxe4 {[%emt 0:02:34]} 24. dxe4 {[%emt 0:00:
02]} Rxe4 {[%emt 0:00:06] White must now prevent ...Rh4.} 25. Kg1 {[%emt 0:00:
01] [#]} Rf4 {[%emt 0:04:43]} 26. b3 $2 {[%emt 0:01:36]} (26. g3 Rxf3 27. Bxf3
Qxf3 28. Qf2) 26... g4 {[%emt 0:04:11][%cal Ye3g2,Yg5g4,Yg4f3] Hoping for ...
Nxg2!} 27. Bb2 {[%emt 0:03:10]} (27. Rf1 $142) 27... Re8 {[%emt 0:00:35]} 28.
g3 {[%emt 0:03:40]} gxf3 {[%emt 0:00:36]} 29. gxf4 {[%emt 0:00:06]} (29. Bxf3
$19 Rxf3 30. Qxd4 Qxd4 31. Bxd4) 29... Qg6+ {[%emt 0:00:00] Weighted Error
Value: White=0.54/Black=0.09 (flawless)} 0-1

[Event "44th Chess Olympiad Open 2022"]
[Site "Chennai"]
[Date "2022.07.31"]
[Round "3.13"]
[White "Mousavi, Seyed Khalil"]
[Black "Blagojevic, Dragisa"]
[Result "1/2-1/2"]
[WhiteElo "2537"]
[BlackElo "2499"]
[Annotator "RC"]
[PlyCount "116"]
[EventDate "2022.??.??"]
[TimeControl "60"]

1. e4 {[%emt 0:00:04]} e5 {[%emt 0:00:11]} 2. Nf3 {[%emt 0:00:32]} Nc6 {
[%emt 0:00:07]} 3. Bb5 {[%emt 0:00:32]} a6 {[%emt 0:00:24]} 4. Ba4 {[%emt 0:00:
00]} Nf6 {[%emt 0:00:12]} 5. Nc3 {[%emt 0:01:17]} b5 {[%emt 0:01:51]} 6. Bb3 {
[%emt 0:00:07]} Be7 {[%emt 0:01:23]} 7. d3 {[%emt 0:01:55]} d6 {[%emt 0:01:02]}
8. a3 {[%emt 0:01:43]} O-O {[%emt 0:02:27]} 9. Nd5 {[%emt 0:01:05]} Nxd5 {
[%emt 0:03:49]} 10. Bxd5 {[%emt 0:01:58]} Bd7 {[%emt 0:03:10]} 11. h4 {[%emt 0:
00:00]} Rb8 {[%emt 0:12:43]} 12. Ng5 {[%emt 0:02:27]} h6 {[%emt 0:24:08]} 13.
Qh5 {[%emt 0:01:33]} Qe8 {[%emt 0:08:58]} 14. Be3 {[%emt 0:13:59]} Nd8 {
[%emt 0:06:39]} 15. Qg6 {[%emt 0:04:21]} Bxg5 {[%emt 0:00:18]} 16. hxg5 {
[%emt 0:00:39]} Be6 {[%emt 0:02:27]} 17. Qh5 {[%emt 0:03:51]} Kh7 {[%emt 0:00:
00]} 18. Qf3 {[%emt 0:06:54]} f6 {[%emt 0:03:21]} 19. Bxe6 {[%emt 0:02:45]}
Nxe6 {[%emt 0:09:27]} 20. Qf5+ {[%emt 0:02:00]} Kg8 {[%emt 0:03:18]} 21. gxh6 {
[%emt 0:05:44]} g6 {[%emt 0:00:12]} 22. h7+ {[%emt 0:00:22]} Kf7 {[%emt 0:00:
00]} 23. Qg4 {[%emt 0:06:52]} Rh8 {[%emt 0:00:14]} 24. Kd2 {[%emt 0:02:54]} Nf8
{[%emt 0:00:38]} 25. f4 {[%emt 0:03:38]} exf4 {[%emt 0:02:45]} 26. Qxf4 {
[%emt 0:04:29]} Qe5 {[%emt 0:00:48]} 27. Qf2 {[%emt 0:00:26]} Re8 {[%emt 0:00:
00]} 28. Raf1 {[%emt 0:02:53]} Rxh7 {[%emt 0:00:13]} 29. g4 {[%emt 0:06:00]}
Rxh1 {[%emt 0:01:50]} 30. Rxh1 {[%emt 0:00:10]} Ke7 {[%emt 0:00:48]} 31. c3 {
[%emt 0:05:19]} Kd8 {[%emt 0:00:51]} 32. Kc2 {[%emt 0:02:22]} Nd7 {[%emt 0:00:
00]} 33. Rh6 {[%emt 0:02:01]} Rg8 {[%emt 0:01:37]} 34. b3 {[%emt 0:04:58]} Qe6
{[%emt 0:00:50]} 35. g5 {[%emt 0:01:34]} Kc8 {[%emt 0:00:29]} 36. Qg2 {[%emt 0:
00:00]} Kb8 {[%emt 0:02:30]} 37. Qh3 {[%emt 0:02:48]} Qxh3 {[%emt 0:00:34]} 38.
Rxh3 {[%emt 0:00:03]} fxg5 {[%emt 0:00:15]} 39. Bxg5 {[%emt 0:00:19]} Rf8 {
[%emt 0:00:32]} 40. d4 {[%emt 0:00:56]} Rf2+ {[%emt 0:00:40]} 41. Kd3 {[%emt 0:
00:00]} Rg2 {[%emt 0:04:09]} 42. Be3 {[%emt 0:00:00]} Kb7 {[%emt 0:06:52]} 43.
Rf3 {[%emt 0:00:00]} a5 {[%emt 0:03:13]} 44. Rf7 {[%emt 0:00:00]} Kc8 {[%emt 0:
00:00]} 45. Re7 {[%emt 0:00:00]} Nb6 {[%emt 0:03:23]} 46. Rf7 {[%emt 0:00:00]}
a4 {[%emt 0:01:28]} 47. bxa4 {[%emt 0:00:00]} Nxa4 {[%emt 0:07:48]} 48. e5 {
[%emt 0:00:00]} Nb2+ {[%emt 0:02:45]} 49. Ke4 {[%emt 0:00:00]} Nc4 {[%emt 0:00:
00]} 50. e6 {[%emt 0:00:00]} Re2 {[%emt 0:00:33]} 51. Rf8+ {[%emt 0:00:00]} Kb7
{[%emt 0:00:06]} 52. Rf3 {[%emt 0:00:00]} Kc8 {[%emt 0:01:05]} 53. Kd3 {
[%emt 0:00:00]} Rxe3+ {[%emt 0:01:50]} 54. Rxe3 {[%emt 0:00:00]} Nxe3 {[%emt 0:
00:00]} 55. Kxe3 {[%emt 0:00:00]} d5 {[%emt 0:00:44]} 56. Kf4 {[%emt 0:00:17]}
Kd8 {[%emt 0:00:11]} 57. Kg5 {[%emt 0:03:15]} Ke7 {[%emt 0:00:06]} 58. Kxg6 {
[%emt 0:00:05]} Kxe6 {[%emt 0:00:04]} 1/2-1/2